[Event "Championnat d'Europe Rapide"]
[Date "2024.12.07"]
[White "Santos Latasa, Jaime"]
[Black "Muradli, Mahammad"]
[WhiteElo "2628"]
[BlackElo "2588"]
[Round "6.10"]
[Result "1/2-1/2"]
[TimeControl "900+10"]

1. e4 {[%emt 00:00:02] [%clk 00:15:18]} c5 {[%emt 00:00:03] [%clk 00:15:19]} 2.
Nf3 {[%clk 00:15:26]} d6 {[%emt 00:00:01] [%clk 00:15:28]} 3. d4 {[%emt
00:00:03] [%clk 00:15:33]} cxd4 {[%emt 00:00:02] [%clk 00:15:36]} 4. Nxd4 {[%emt
00:00:01] [%clk 00:15:42]} Nf6 {[%emt 00:00:01] [%clk 00:15:45]} 5. Nc3 {[%clk
00:15:52]} a6 {[%emt 00:00:02] [%clk 00:15:54]} 6. Be3 {[%clk 00:16:00]} e5
{[%emt 00:00:03] [%clk 00:15:59]} 7. Nb3 {[%emt 00:00:02] [%clk 00:16:09]} Be6
{[%emt 00:00:02] [%clk 00:16:07]} 8. h3 {[%emt 00:00:04] [%clk 00:16:15]} Be7
{[%emt 00:00:08] [%clk 00:16:10]} 9. Qd2 {[%emt 00:00:02] [%clk 00:16:24]} Nbd7
{[%emt 00:01:59] [%clk 00:14:20]} 10. O-O-O {[%emt 00:00:02] [%clk 00:16:31]} b5
{[%emt 00:02:15] [%clk 00:12:16]} 11. g4 {[%emt 00:00:11] [%clk 00:16:30]} O-O
{[%emt 00:00:15] [%clk 00:12:11]} 12. Kb1 {[%emt 00:00:26] [%clk 00:16:13]} b4
{[%emt 00:00:13] [%clk 00:12:09]} 13. Nd5 {[%emt 00:00:03] [%clk 00:16:19]} Bxd5
{[%emt 00:00:03] [%clk 00:12:16]} 14. exd5 {[%emt 00:00:02] [%clk 00:16:28]} Nb6
{[%clk 00:12:25]} 15. Qxb4 {[%emt 00:00:08] [%clk 00:16:30]} Nfxd5 {[%emt
00:00:05] [%clk 00:12:29]} 16. Bxb6 {[%emt 00:00:02] [%clk 00:16:38]} Nxb6
{[%emt 00:00:08] [%clk 00:12:31]} 17. Qe4 {[%emt 00:00:04] [%clk 00:16:45]} Qb8
{[%emt 00:00:09] [%clk 00:12:30]} 18. f4 {[%emt 00:00:24] [%clk 00:16:33]} d5
{[%emt 00:00:02] [%clk 00:12:38]} 19. Qxe5 {[%emt 00:00:16] [%clk 00:16:26]} Bd6
{[%emt 00:00:01] [%clk 00:12:47]} 20. Qd4 {[%emt 00:00:15] [%clk 00:16:22]} Bxf4
{[%emt 00:00:02] [%clk 00:12:55]} 21. c3 {[%emt 00:00:32] [%clk 00:16:00]} a5
{[%emt 00:01:11] [%clk 00:11:54]} 22. Nc5 {[%emt 00:00:23] [%clk 00:15:47]} Re8
{[%emt 00:02:23] [%clk 00:09:41]} 23. Na6 {[%emt 00:01:35] [%clk 00:14:21]} Qd6
{[%emt 00:00:01] [%clk 00:09:50]} 24. Qc5 {[%emt 00:00:09] [%clk 00:14:22]} Qf6
{[%emt 00:00:48] [%clk 00:09:13]} 25. Bb5 {[%emt 00:02:05] [%clk 00:12:27]} Be3
{[%emt 00:03:48] [%clk 00:05:35]} 26. Qa3 {[%emt 00:00:50] [%clk 00:11:46]} Rec8
{[%emt 00:00:02] [%clk 00:05:44]} 27. Rhe1 {[%emt 00:00:49] [%clk 00:11:07]} d4
{[%emt 00:02:35] [%clk 00:03:19]} 28. cxd4 {[%emt 00:00:59] [%clk 00:10:17]}
Bxd4 {[%clk 00:03:29]} 29. Rf1 {[%emt 00:00:10] [%clk 00:10:16]} Qe5 {[%emt
00:00:29] [%clk 00:03:10]} 30. Rf5 {[%emt 00:00:34] [%clk 00:09:52]} Qe6 {[%emt
00:01:35] [%clk 00:01:46]} 31. Qb3 {[%emt 00:00:23] [%clk 00:09:39]} Nc4 {[%emt
00:01:44] [%clk 00:00:13]} 32. Nc5 {[%emt 00:05:14] [%clk 00:04:34]} Rxc5 {[%emt
00:00:11] [%clk 00:00:12]} 33. Rxc5 {[%emt 00:00:02] [%clk 00:04:42]} Bxc5
{[%emt 00:00:11] [%clk 00:00:12]} 34. Bxc4 {[%emt 00:00:03] [%clk 00:04:48]} Qe7
{[%emt 00:00:09] [%clk 00:00:13]} 35. Qb5 {[%emt 00:00:42] [%clk 00:04:15]} g6
{[%emt 00:00:12] [%clk 00:00:11]} 36. Bxf7+ {[%emt 00:00:26] [%clk 00:04:00]}
Kh8 {[%clk 00:00:20]} 37. Bb3 {[%emt 00:00:21] [%clk 00:03:49]} Qe4+ {[%emt
00:00:19] [%clk 00:00:12]} 38. Ka1 {[%emt 00:00:45] [%clk 00:03:14]} Bf8 {[%emt
00:00:11] [%clk 00:00:11]} 39. Qd5 {[%emt 00:00:47] [%clk 00:02:37]} Qxd5 {[%emt
00:00:01] [%clk 00:00:20]} 40. Bxd5 {[%emt 00:00:07] [%clk 00:02:40]} Re8 {[%emt
00:00:19] [%clk 00:00:11]} 41. a3 {[%emt 00:00:12] [%clk 00:02:37]} Re3 {[%emt
00:00:09] [%clk 00:00:13]} 42. h4 {[%emt 00:00:42] [%clk 00:02:05]} Be7 {[%emt
00:00:10] [%clk 00:00:13]} 43. g5 {[%emt 00:00:17] [%clk 00:01:58]} h6 {[%emt
00:00:02] [%clk 00:00:21]} 44. gxh6 {[%emt 00:00:13] [%clk 00:01:55]} Kh7 {[%emt
00:00:06] [%clk 00:00:25]} 45. Bc6 {[%emt 00:00:15] [%clk 00:01:49]} Bf6 {[%emt
00:00:23] [%clk 00:00:12]} 46. Rd6 {[%emt 00:00:24] [%clk 00:01:36]} Be5 {[%emt
00:00:02] [%clk 00:00:20]} 47. Rd5 {[%emt 00:00:09] [%clk 00:01:37]} Rxa3+
{[%emt 00:00:14] [%clk 00:00:16]} 48. Kb1 {[%emt 00:00:01] [%clk 00:01:45]} Re3
{[%clk 00:00:25]} 49. Rxa5 {[%emt 00:00:05] [%clk 00:01:51]} Kxh6 {[%emt
00:00:01] [%clk 00:00:34]} 50. Kc2 {[%emt 00:00:27] [%clk 00:01:33]} Bf6 {[%emt
00:00:02] [%clk 00:00:43]} 51. Ra3 {[%emt 00:00:09] [%clk 00:01:34]} Re2+ {[%emt
00:00:10] [%clk 00:00:43]} 52. Kd3 {[%emt 00:00:02] [%clk 00:01:41]} Rxb2 {[%emt
00:00:03] [%clk 00:00:50]} 53. Ra4 {[%emt 00:00:04] [%clk 00:01:48]} Rh2 {[%emt
00:00:03] [%clk 00:00:57]} 54. Be8 {[%emt 00:00:16] [%clk 00:01:41]} Bxh4 {[%emt
00:00:42] [%clk 00:00:25]} 55. Ra6 {[%emt 00:00:05] [%clk 00:01:46]} Rg2 {[%emt
00:00:02] [%clk 00:00:34]} 56. Rxg6+ {[%emt 00:00:01] [%clk 00:01:55]} Rxg6
{[%emt 00:00:01] [%clk 00:00:43]} 57. Bxg6 {[%emt 00:00:01] [%clk 00:02:04]}
1/2-1/2

[Site "Europe Echecs"]

[Event "Championnat d'Europe Rapide"]
[Date "2024.12.07"]
[White "Sarana, Alexey"]
[Black "Peyrer, Konstantin"]
[WhiteElo "2674"]
[BlackElo "2440"]
[Round "6.11"]
[Result "1/2-1/2"]
[TimeControl "900+10"]

1. d4 {[%emt 00:22:47] [%clk 00:15:19]} Nf6 {[%emt 00:00:02] [%clk 00:15:18]} 2.
c4 {[%emt 00:00:05] [%clk 00:15:25]} e6 {[%emt 00:00:01] [%clk 00:15:27]} 3. Nf3
{[%emt 00:00:01] [%clk 00:15:33]} d5 {[%emt 00:00:01] [%clk 00:15:36]} 4. Nc3
{[%emt 00:00:02] [%clk 00:15:42]} Nbd7 {[%emt 00:00:01] [%clk 00:15:43]} 5. cxd5
{[%emt 00:00:07] [%clk 00:15:47]} exd5 {[%emt 00:00:01] [%clk 00:15:51]} 6. Bg5
{[%emt 00:00:02] [%clk 00:15:55]} c6 {[%emt 00:00:02] [%clk 00:15:59]} 7. e3
{[%emt 00:00:02] [%clk 00:16:03]} h6 {[%emt 00:00:03] [%clk 00:16:07]} 8. Bh4
{[%emt 00:00:01] [%clk 00:16:12]} g5 {[%emt 00:00:01] [%clk 00:16:15]} 9. Bg3
{[%emt 00:00:01] [%clk 00:16:21]} Nh5 {[%emt 00:00:02] [%clk 00:16:23]} 10. Bd3
{[%emt 00:00:01] [%clk 00:16:30]} Nxg3 {[%emt 00:00:03] [%clk 00:16:31]} 11.
hxg3 {[%emt 00:00:02] [%clk 00:16:35]} Bg7 {[%emt 00:00:04] [%clk 00:16:39]} 12.
O-O {[%emt 00:00:16] [%clk 00:16:29]} O-O {[%emt 00:00:12] [%clk 00:16:36]} 13.
Qc2 {[%emt 00:00:03] [%clk 00:16:37]} Nb6 {[%emt 00:00:06] [%clk 00:16:40]} 14.
b4 {[%emt 00:00:06] [%clk 00:16:41]} Be6 {[%emt 00:00:28] [%clk 00:16:22]} 15.
b5 {[%emt 00:00:35] [%clk 00:16:17]} c5 {[%emt 00:00:20] [%clk 00:16:11]} 16.
dxc5 {[%emt 00:00:02] [%clk 00:16:25]} Rc8 {[%emt 00:00:01] [%clk 00:16:20]} 17.
Nd4 {[%emt 00:01:06] [%clk 00:15:29]} Rxc5 {[%emt 00:00:03] [%clk 00:16:27]} 18.
Qb3 {[%emt 00:00:03] [%clk 00:15:36]} Qe7 {[%emt 00:00:40] [%clk 00:15:57]} 19.
Nce2 {[%emt 00:00:23] [%clk 00:15:24]} Bg4 {[%emt 00:01:05] [%clk 00:15:01]} 20.
Rad1 {[%emt 00:01:12] [%clk 00:14:22]} Nc4 {[%emt 00:01:46] [%clk 00:13:25]} 21.
Nf5 {[%emt 00:00:57] [%clk 00:13:36]} Bxf5 {[%emt 00:00:02] [%clk 00:13:32]} 22.
Bxf5 {[%emt 00:00:01] [%clk 00:13:45]} Nd6 {[%emt 00:00:48] [%clk 00:12:54]} 23.
Bd3 {[%emt 00:00:20] [%clk 00:13:35]} Rfc8 {[%emt 00:00:47] [%clk 00:12:17]} 24.
g4 {[%emt 00:02:19] [%clk 00:11:26]} Ne4 {[%emt 00:01:46] [%clk 00:10:41]} 25.
Qb4 {[%emt 00:02:11] [%clk 00:09:25]} b6 {[%emt 00:00:10] [%clk 00:10:41]} 26.
a4 {[%emt 00:00:26] [%clk 00:09:10]} Nc3 {[%emt 00:01:23] [%clk 00:09:27]} 27.
Nxc3 {[%emt 00:00:05] [%clk 00:09:15]} Bxc3 {[%emt 00:00:02] [%clk 00:09:35]}
28. Qb3 {[%emt 00:00:36] [%clk 00:08:50]} Bf6 {[%emt 00:00:16] [%clk 00:09:29]}
29. Bb1 {[%emt 00:01:20] [%clk 00:07:40]} Rd8 {[%emt 00:00:20] [%clk 00:09:18]}
30. Qd3 {[%emt 00:01:56] [%clk 00:05:54]} Kf8 {[%emt 00:00:02] [%clk 00:09:26]}
31. Ba2 {[%emt 00:00:27] [%clk 00:05:38]} Qe4 {[%emt 00:00:51] [%clk 00:08:44]}
32. Qxe4 {[%emt 00:00:06] [%clk 00:05:42]} dxe4 {[%emt 00:00:02] [%clk
00:08:53]} 33. Rxd8+ {[%emt 00:00:01] [%clk 00:05:51]} Bxd8 {[%emt 00:00:01]
[%clk 00:09:02]} 34. Rd1 {[%emt 00:00:01] [%clk 00:06:00]} Bc7 {[%emt 00:00:24]
[%clk 00:08:47]} 35. g3 {[%emt 00:00:39] [%clk 00:05:31]} Rc2 {[%emt 00:01:01]
[%clk 00:07:56]} 36. Bd5 {[%emt 00:00:07] [%clk 00:05:34]} Ke7 {[%emt 00:00:07]
[%clk 00:07:59]} 37. Rd4 {[%emt 00:00:40] [%clk 00:05:05]} Be5 {[%emt 00:00:31]
[%clk 00:07:36]} 38. Rxe4 {[%emt 00:00:11] [%clk 00:05:05]} f6 {[%emt 00:00:02]
[%clk 00:07:44]} 39. f4 {[%emt 00:01:07] [%clk 00:04:09]} Kd6 {[%emt 00:00:01]
[%clk 00:07:52]} 40. Bb3 {[%emt 00:01:09] [%clk 00:03:10]} Rc1+ {[%emt 00:00:02]
[%clk 00:08:01]} 41. Kf2 {[%emt 00:00:01] [%clk 00:03:19]} Bc3 {[%emt 00:00:02]
[%clk 00:08:09]} 42. Ke2 {[%emt 00:00:20] [%clk 00:03:09]} Rg1 {[%emt 00:00:52]
[%clk 00:07:26]} 43. Rc4 {[%emt 00:00:11] [%clk 00:03:08]} Ba1 {[%emt 00:00:08]
[%clk 00:07:28]} 44. Rc6+ {[%emt 00:00:05] [%clk 00:03:14]} Kd7 {[%emt 00:00:01]
[%clk 00:07:36]} 45. Kf3 {[%emt 00:00:53] [%clk 00:02:32]} Rf1+ {[%emt 00:00:31]
[%clk 00:07:14]} 46. Ke4 {[%emt 00:00:02] [%clk 00:02:40]} Rg1 {[%emt 00:00:01]
[%clk 00:07:23]} 47. Kf3 {[%emt 00:00:59] [%clk 00:01:51]} Rf1+ {[%emt 00:00:02]
[%clk 00:07:31]} 48. Ke2 {[%emt 00:00:02] [%clk 00:02:00]} Rg1 {[%emt 00:00:04]
[%clk 00:07:36]} 49. Kf2 {[%emt 00:00:01] [%clk 00:02:08]} Rb1 {[%emt 00:00:33]
[%clk 00:07:14]} 50. Be6+ {[%emt 00:00:01] [%clk 00:02:16]} Ke7 {[%emt 00:00:12]
[%clk 00:07:12]} 51. Bf5 {[%emt 00:00:07] [%clk 00:02:20]} Rb2+ {[%emt 00:00:01]
[%clk 00:07:20]} 52. Kf3 {[%emt 00:00:29] [%clk 00:02:01]} Ra2 {[%emt 00:00:33]
[%clk 00:06:57]} 53. Rc7+ {[%emt 00:00:08] [%clk 00:02:03]} Kd6 {[%emt 00:00:02]
[%clk 00:07:05]} 54. Rxa7 {[%emt 00:00:02] [%clk 00:02:12]} Kc5 {[%emt 00:00:05]
[%clk 00:07:09]} 55. Ke4 {[%emt 00:01:29] [%clk 00:00:53]} Rg2 {[%emt 00:01:04]
[%clk 00:06:15]} 56. a5 {[%emt 00:00:37] [%clk 00:00:27]} bxa5 {[%emt 00:00:22]
[%clk 00:06:03]} 57. Bd7 {[%emt 00:00:01] [%clk 00:00:36]} Rxg3 {[%emt 00:00:20]
[%clk 00:05:53]} 58. Rc7+ {[%emt 00:00:09] [%clk 00:00:37]} Kd6 {[%emt 00:00:07]
[%clk 00:05:56]} 59. Ra7 {[%emt 00:00:33] [%clk 00:00:14]} Rg1 {[%emt 00:00:15]
[%clk 00:05:50]} 60. Be8 {[%emt 00:00:04] [%clk 00:00:20]} gxf4 {[%emt 00:00:29]
[%clk 00:05:32]} 61. Kxf4 {[%emt 00:00:08] [%clk 00:00:21]} Be5+ {[%emt
00:00:04] [%clk 00:05:38]} 62. Kf5 {[%emt 00:00:01] [%clk 00:00:31]} Ra1 {[%emt
00:00:17] [%clk 00:05:30]} 63. Ra6+ {[%emt 00:00:01] [%clk 00:00:40]} Kc7 {[%emt
00:00:11] [%clk 00:05:28]} 64. Bc6 {[%emt 00:00:11] [%clk 00:00:40]} a4 {[%emt
00:00:14] [%clk 00:05:24]} 65. Bd5 {[%emt 00:00:06] [%clk 00:00:44]} Rb1 {[%emt
00:00:04] [%clk 00:05:30]} 66. Rc6+ {[%emt 00:00:16] [%clk 00:00:38]} Kd8 {[%emt
00:00:33] [%clk 00:05:06]} 67. b6 {[%emt 00:00:30] [%clk 00:00:18]} a3 {[%emt
00:01:48] [%clk 00:03:28]} 68. e4 {[%emt 00:00:09] [%clk 00:00:19]} Rb2 {[%emt
00:00:08] [%clk 00:03:30]} 69. b7 {[%emt 00:00:08] [%clk 00:00:22]} Rxb7 {[%emt
00:00:03] [%clk 00:03:37]} 70. Ra6 {[%clk 00:00:31]} Rg7 {[%emt 00:00:40] [%clk
00:03:06]} 71. Rxa3 {[%emt 00:00:10] [%clk 00:00:32]} Ke7 {[%emt 00:00:03] [%clk
00:03:13]} 72. Ra7+ {[%emt 00:00:02] [%clk 00:00:39]} Kf8 {[%emt 00:00:01] [%clk
00:03:22]} 73. Ra8+ {[%emt 00:00:09] [%clk 00:00:40]} Ke7 {[%emt 00:00:01] [%clk
00:03:31]} 74. Ra7+ {[%emt 00:00:04] [%clk 00:00:47]} 1/2-1/2

[Site "Europe Echecs"]

[Event "Championnat d'Europe Rapide"]
[Date "2024.12.07"]
[White "Paichadze, Luka"]
[Black "Motylev, Alexander"]
[WhiteElo "2532"]
[BlackElo "2596"]
[Round "6.12"]
[Result "1-0"]
[TimeControl "900+10"]

1. e4 {[%emt 00:00:02] [%clk 00:15:15]} c5 {[%emt 00:00:04] [%clk 00:15:18]} 2.
Nf3 {[%emt 00:00:02] [%clk 00:15:24]} d6 {[%emt 00:00:02] [%clk 00:15:26]} 3. d4
{[%emt 00:00:01] [%clk 00:15:32]} cxd4 {[%emt 00:00:02] [%clk 00:15:34]} 4. Qxd4
{[%emt 00:00:02] [%clk 00:15:41]} Nf6 {[%emt 00:00:06] [%clk 00:15:37]} 5. Bg5
{[%emt 00:00:02] [%clk 00:15:49]} Nc6 {[%emt 00:00:05] [%clk 00:15:42]} 6. Bb5
{[%emt 00:00:02] [%clk 00:15:58]} e6 {[%emt 00:00:03] [%clk 00:15:48]} 7. Nc3
{[%emt 00:00:39] [%clk 00:15:29]} Bd7 {[%emt 00:00:03] [%clk 00:15:55]} 8. Qd3
{[%emt 00:00:03] [%clk 00:15:36]} h6 {[%emt 00:00:11] [%clk 00:15:53]} 9. Bxf6
{[%emt 00:00:05] [%clk 00:15:42]} Qxf6 {[%emt 00:00:02] [%clk 00:16:01]} 10.
O-O-O {[%emt 00:00:10] [%clk 00:15:43]} Qd8 {[%emt 00:00:47] [%clk 00:15:23]}
11. Nd4 {[%emt 00:00:38] [%clk 00:15:14]} Qb6 {[%emt 00:01:14] [%clk 00:14:20]}
12. f4 {[%emt 00:00:55] [%clk 00:14:29]} g5 {[%emt 00:00:44] [%clk 00:13:46]}
13. Bxc6 {[%emt 00:02:05] [%clk 00:12:35]} bxc6 {[%emt 00:00:13] [%clk
00:13:43]} 14. f5 {[%emt 00:00:03] [%clk 00:12:41]} Bg7 {[%emt 00:01:44] [%clk
00:12:09]} 15. fxe6 {[%emt 00:02:57] [%clk 00:09:55]} fxe6 {[%emt 00:00:04]
[%clk 00:12:14]} 16. e5 {[%emt 00:00:17] [%clk 00:09:49]} Bxe5 {[%emt 00:01:10]
[%clk 00:11:13]} 17. Nf3 {[%emt 00:00:24] [%clk 00:09:35]} Bf4+ {[%emt 00:02:27]
[%clk 00:08:56]} 18. Kb1 {[%emt 00:00:01] [%clk 00:09:44]} Rb8 {[%emt 00:00:30]
[%clk 00:08:36]} 19. b3 {[%emt 00:03:04] [%clk 00:06:50]} d5 {[%emt 00:03:11]
[%clk 00:05:35]} 20. g3 {[%emt 00:00:01] [%clk 00:06:58]} Bd6 {[%emt 00:00:27]
[%clk 00:05:19]} 21. Ne4 {[%emt 00:00:01] [%clk 00:07:07]} c5 {[%emt 00:01:59]
[%clk 00:03:30]} 22. Nxd6+ {[%emt 00:00:41] [%clk 00:06:36]} Qxd6 {[%emt
00:00:02] [%clk 00:03:39]} 23. Rhe1 {[%emt 00:00:07] [%clk 00:06:38]} Kd8 {[%emt
00:00:25] [%clk 00:03:24]} 24. Ne5 {[%emt 00:00:03] [%clk 00:06:45]} Rf8 {[%emt
00:01:04] [%clk 00:02:29]} 25. Qg6 {[%emt 00:01:06] [%clk 00:05:49]} Kc7 {[%emt
00:00:39] [%clk 00:02:01]} 26. Qxh6 {[%emt 00:00:04] [%clk 00:05:55]} Rf5 {[%emt
00:01:46] [%clk 00:00:24]} 27. Qg7 {[%emt 00:00:16] [%clk 00:05:50]} Re8 {[%emt
00:00:09] [%clk 00:00:25]} 28. Ng4 {[%emt 00:03:00] [%clk 00:03:00]} d4 {[%emt
00:00:09] [%clk 00:00:27]} 29. Ne3 {[%emt 00:00:16] [%clk 00:02:54]} Rff8 {[%emt
00:00:24] [%clk 00:00:13]} 30. Nc4 {[%emt 00:00:12] [%clk 00:02:51]} Qd5 {[%emt
00:00:10] [%clk 00:00:13]} 31. Re5 {[%emt 00:00:16] [%clk 00:02:45]} Rg8 {[%emt
00:00:09] [%clk 00:00:14]} 32. Qf6 {[%emt 00:00:31] [%clk 00:02:23]} Qc6 {[%emt
00:00:13] [%clk 00:00:12]} 33. Rde1 {[%emt 00:00:10] [%clk 00:02:23]} Kb8 {[%emt
00:00:09] [%clk 00:00:13]} 34. Rxg5 {[%emt 00:00:10] [%clk 00:02:23]} Rgf8
{[%emt 00:00:06] [%clk 00:00:18]} 35. Qe5+ {[%emt 00:00:03] [%clk 00:02:29]} Ka8
{[%clk 00:00:27]} 36. Qxc5 {[%emt 00:00:38] [%clk 00:02:01]} Qxc5 {[%emt
00:00:01] [%clk 00:00:36]} 37. Rxc5 {[%emt 00:00:01] [%clk 00:02:10]} Rf2 {[%emt
00:00:01] [%clk 00:00:44]} 38. Rd1 {[%emt 00:00:32] [%clk 00:01:48]} Rxh2 {[%emt
00:00:43] [%clk 00:00:12]} 39. Rxd4 {[%emt 00:00:02] [%clk 00:01:57]} Rh7 {[%emt
00:00:06] [%clk 00:00:16]} 40. Rc7 {[%emt 00:00:38] [%clk 00:01:28]} Rh1+ {[%emt
00:00:16] [%clk 00:00:00]} 1-0

[Site "Europe Echecs"]

[Event "Championnat d'Europe Rapide"]
[Date "2024.12.07"]
[White "Kalezic, Blazo"]
[Black "Ragger, Markus"]
[WhiteElo "2382"]
[BlackElo "2577"]
[Round "6.13"]
[Result "1/2-1/2"]
[TimeControl "900+10"]

1. e4 {[%clk 00:15:16]} e5 {[%emt 00:00:02] [%clk 00:15:19]} 2. Nf3 {[%emt
00:00:03] [%clk 00:15:24]} Nc6 {[%emt 00:00:02] [%clk 00:15:27]} 3. Bb5 {[%emt
00:00:02] [%clk 00:15:31]} a6 {[%emt 00:00:02] [%clk 00:15:36]} 4. Ba4 {[%emt
00:00:01] [%clk 00:15:39]} Bc5 {[%emt 00:00:02] [%clk 00:15:43]} 5. O-O {[%emt
00:00:14] [%clk 00:15:36]} Nge7 {[%emt 00:00:03] [%clk 00:15:51]} 6. c3 {[%emt
00:00:10] [%clk 00:15:36]} Ba7 {[%emt 00:00:03] [%clk 00:15:58]} 7. d4 {[%emt
00:00:42] [%clk 00:15:03]} Ng6 {[%emt 00:00:02] [%clk 00:16:06]} 8. Bg5 {[%emt
00:00:33] [%clk 00:14:40]} f6 {[%emt 00:00:02] [%clk 00:16:14]} 9. Be3 {[%emt
00:00:02] [%clk 00:14:48]} O-O {[%emt 00:00:04] [%clk 00:16:21]} 10. d5 {[%emt
00:00:45] [%clk 00:14:12]} Nce7 {[%emt 00:00:03] [%clk 00:16:29]} 11. d6 {[%emt
00:00:58] [%clk 00:13:24]} cxd6 {[%emt 00:00:02] [%clk 00:16:37]} 12. Qxd6
{[%emt 00:00:17] [%clk 00:13:15]} Bb8 {[%emt 00:00:31] [%clk 00:16:18]} 13. Qd1
{[%emt 00:00:47] [%clk 00:12:37]} d5 {[%emt 00:04:50] [%clk 00:11:38]} 14. Nbd2
{[%emt 00:00:52] [%clk 00:11:55]} Kh8 {[%emt 00:00:27] [%clk 00:11:22]} 15. Re1
{[%emt 00:01:20] [%clk 00:10:44]} b5 {[%emt 00:00:55] [%clk 00:10:38]} 16. Bc2
{[%emt 00:00:13] [%clk 00:10:40]} Bb7 {[%emt 00:00:40] [%clk 00:10:09]} 17. exd5
{[%emt 00:00:39] [%clk 00:10:11]} Nxd5 {[%emt 00:00:06] [%clk 00:10:13]} 18.
Bxg6 {[%emt 00:01:36] [%clk 00:08:44]} hxg6 {[%emt 00:00:02] [%clk 00:10:21]}
19. Nh4 {[%emt 00:00:35] [%clk 00:08:18]} Kh7 {[%emt 00:01:19] [%clk 00:09:13]}
20. Qg4 {[%emt 00:00:16] [%clk 00:08:12]} Qe8 {[%emt 00:00:57] [%clk 00:08:27]}
21. Ndf3 {[%emt 00:01:24] [%clk 00:06:57]} Nxe3 {[%emt 00:01:49] [%clk
00:06:48]} 22. Rxe3 {[%emt 00:00:15] [%clk 00:06:52]} g5 {[%emt 00:00:03] [%clk
00:06:55]} 23. Qf5+ {[%emt 00:02:01] [%clk 00:05:00]} Kg8 {[%emt 00:02:31] [%clk
00:04:35]} 24. Ng6 {[%emt 00:00:42] [%clk 00:04:28]} Ba7 {[%emt 00:00:02] [%clk
00:04:44]} 25. Rd3 {[%emt 00:02:07] [%clk 00:02:30]} Bc8 {[%emt 00:01:55] [%clk
00:03:00]} 26. Qe4 {[%emt 00:00:07] [%clk 00:02:33]} Bb7 {[%clk 00:03:09]} 27.
Qf5 {[%emt 00:00:26] [%clk 00:02:17]} Bc8 {[%emt 00:00:47] [%clk 00:02:33]} 28.
Qe4 {[%emt 00:00:06] [%clk 00:02:20]} Bb7 {[%clk 00:02:42]} 29. Qf5 {[%emt
00:00:19] [%clk 00:02:11]} 1/2-1/2

[Site "Europe Echecs"]